Cogmind - Beta 14 @@@ ROGUE MODE // 2024.12.24 @ 21:19:11 Player: Derk Result: Destroyed by YI-UF0 with YI-UF0's Doublenader Performance ------------- Evolutions (0) 0 Regions Visited (2) 400 Robots Destroyed (19) 95 Value Destroyed (257) 257 Prototype IDs (0) 0 Alien Tech Used (0) 0 Bonus (0) 0 TOTAL SCORE: 752 Bonus ------- None Cogmind --------- Core Integrity 0/250 Matter 294/300 Energy 98/100 System Corruption 4% Temperature Cool (1) Movement Treading (160) Location -10/Mines Parts ------- > --- POWER (1) -------- (None) > --- PROPULSION (2) --- Light Treads > --- UTILITY (2) ------ Medium Storage Unit > --- WEAPON (2) ------- (None) > --- INVENTORY (10) --- Wheel Large Storage Unit Medium Matter Pod (38) Targeting Computer Medium Armor Plating Medium Armor Plating Hardened Light Armor Plating Medium Laser Light Assault Rifle Peak State ------------ > --- POWER ------------ Ion Engine > --- PROPULSION ------- Wheel Compact Wheel > --- UTILITY ---------- Small Storage Unit Improved Terrain Scanner > --- WEAPON ----------- EM Pulse Gun Small Laser > --- INVENTORY -------- Light Ion Engine Light Treads Light Treads Aluminum Leg Aluminum Leg EM Pulse Gun Mining Laser [Rating: 9] Favorites ----------- Power Ion Engine Engine Ion Engine Propulsion Wheel Treads Light Treads Wheel Wheel Utility Medium Storage Unit Device Improved Terrain Scanner Storage Medium Storage Unit Protection Light Armor Plating Weapon Light Assault Rifle Energy Gun EM Pulse Gun Ballistic Gun Light Assault Rifle Build | -11 -10 -10 ------- Run | Yrd Mat Min Slots Evolved . | . . . Power . | . . . Propulsion . | . . . Utility . | . . . Weapon . | . . . Parts Attached 17 | 6 9 2 Power 2 | 1 1 . Engine 2 | 1 1 . Core . | . . . Reactor . | . . . Propulsion 5 | 2 1 2 Treads 2 | . . 2 Leg . | . . . Wheel 3 | 2 1 . Hover . | . . . Flight . | . . . Utility 4 | 1 3 . Device 1 | . 1 . Storage 2 | 1 1 . Processor . | . . . Hackware . | . . . Protection 1 | . 1 . Artifact . | . . . Weapon 6 | 2 4 . Energy Gun 4 | 2 2 . Energy Cannon . | . . . Ballistic Gun 2 | . 2 . Ballistic Cannon . | . . . Launcher . | . . . Special Weapon . | . . . Impact Weapon . | . . . Slashing Weapon . | . . . Piercing Weapon . | . . . Special Melee Weapon . | . . . Unidentified Prototypes . | . . . Parts Lost 8 | . 3 5 Power 1 | . . 1 Propulsion 1 | . . 1 Utility 2 | . 1 1 Weapon 4 | . 2 2 Highest Loss Streak 3 | . 1 3 To Critical Strikes . | . . . Average Slot Usage (%) 97 | . 100 86 Engine 13 | . 14 8 Treads 1 | . . 7 Wheel 26 | . 28 19 Device 5 | . 6 . Storage 14 | . 14 14 Protection 8 | . 7 12 Energy Gun 8 | . 9 . Ballistic Gun 19 | . 18 25 Peak Build Rating 9 | 7 9 8 Average Rating 7 | 5 8 7 On Entrance 5 | . 7 8 Naked Turns . | . . . Heaviest Build 21 | 13 21 18 Greatest Support 40 | 26 26 40 Greatest Overweight (x) 1 | . . 1 Average Overweight (x) . | . . . Largest Inventory Capacity 10 | 8 10 10 Average Capacity 9 | 7 9 10 Most Carried 10 | 8 10 10 Average Carried 8 | 5 8 9 Final Capacity 10 | 8 10 10 Final Carried 10 | 8 10 9 Class Distribution -------------------- 100% | Mutant Dominant Class ---------------- Mutant | -10/Materials Mutant | -10/Mines Resources | -11 -10 -10 ----------- Run | Yrd Mat Min Matter Collected 413 | 260 107 46 Remotely . | . . . Salvage Created 508 | 127 335 46 Parts 41 | 10 28 3 Haulers Intercepted 1 | . 1 . Recyclers Shooed . | . . . Parts Field Recycled . | . . . Retrieved Matter . | . . . Parts Self-Destructed . | . . . Prevented . | . . . Kills | -11 -10 -10 ------- Run | Yrd Mat Min Combat Hostiles Destroyed 12 | . 11 1 Guns 11 | . 10 1 AOE 1 | . 1 . Classes Destroyed 8 | 2 6 . Worker 1 | . 1 . Tunneler 2 | 2 . . Hauler 1 | . 1 . Recycler 1 | 1 . . Operator 1 | . 1 . Watcher 1 | . 1 . Swarmer 9 | . 9 . Grunt 3 | . 2 1 Best Kill Streak 4 | 2 4 1 Combat Bots Only 3 | . 3 1 Max Kills in Single Turn 2 | 1 2 1 Gunslinging 1 | . 1 . Exploded 1 | . 1 . Melee . | . . . Uniques/NPCs Destroyed . | . . . Combat | -11 -10 -10 -------- Run | Yrd Mat Min Hostile Shots Fired 72 | . 44 28 Missed 19 | . 10 9 Damage Taken 1143 | . 336 807 Core 263 | . 59 204 Absorbed by Shields . | . . . Core Remaining (%) 100 | 100 . . Volleys Fired 57 | 9 39 9 Largest 2 | 2 2 2 Hottest 90 | 80 90 40 Shots Fired 113 | 18 78 17 Gun 113 | 18 78 17 Cannon . | . . . Launcher . | . . . Special . | . . . Kinetic 44 | . 27 17 Thermal 28 | 9 19 . Explosive . | . . . Electromagnetic 41 | 9 32 . Robot Hit Streak 8 | 6 8 4 Robot Miss Streak 3 | 1 3 1 Penetration Max . | . . . Secondary Targets 2 | . 2 . Max Gunslinging Chain 1 | . 1 . Shots Hit Robots 75 | 14 49 12 Core Hits 26 | 4 20 2 Critical Kills 1 | . 1 . Critical Parts Destroyed . | . . . Critical Strikes 2 | . 2 . Burn 1 | . 1 . Destroy 1 | . 1 . Melee Attacks . | . . . Impact . | . . . Slashing . | . . . Piercing . | . . . Sneak Attacks . | . . . Combat Hostiles . | . . . Follow-up Attacks . | . . . Damage Inflicted 869 | 163 606 100 Guns 849 | 163 586 100 Cannons . | . . . Explosions 20 | . 20 . Melee . | . . . Ramming . | . . . Kinetic 218 | . 118 100 Thermal 238 | 75 163 . Explosive . | . . . Electromagnetic 413 | 88 325 . Impact . | . . . Slashing . | . . . Piercing . | . . . Highest Corruption 4 | . . 4 Average Corruption 4 | . . 4 Corruption Purged . | . . . Corruption Blocked . | . . . Effects 2 | . . 2 Message Errors 1 | . . 1 Parts Rejected 1 | . . 1 Overload Shots . | . . . Overflow Damage . | . . . Projectiles . | . . . Explosions . | . . . Melee . | . . . Knockbacks . | . . . Impact . | . . . Kinetic . | . . . Secondary . | . . . Self-Inflicted Damage . | . . . Shots . | . . . Rammed . | . . . Targets Rammed . | . . . Kicked . | . . . Crushed . | . . . Highest Temperature 346 | 108 346 31 Average Temperature 73 | 46 89 17 Received Heat Transfer 108 | . 66 42 Effects 1 | . 1 . Energy Bleed 1 | . 1 . Siege Activations . | . . . Robots Corrupted . | . . . Combat Hostiles . | . . . Parts Fried 3 | 1 2 . Impact Corruptions . | . . . Robots Melted . | . . . Combat Hostiles . | . . . Parts Melted . | . . . Heat Transferred 633 | 175 458 . Parts Sabotaged . | . . . Parts Stolen . | . . . Parts Stripped . | . . . Power Chain Reactions 1 | . 1 . Alert | -11 -10 -10 ------- Run | Yrd Mat Min Peak Influence 351 | 15 351 83 Initial 33 | . 9 33 Average 142 | 6 174 53 Maximum Alert Level 1 | . 1 . Low Security (%) 62 | 100 50 100 Level 1 37 | . 49 . Level 2 . | . . . Level 3 . | . . . Level 4 . | . . . Level 5 . | . . . High Security . | . . . Max Security . | . . . Squads Dispatched 1 | . 1 . Investigation . | . . . Extermination . | . . . Reinforcement 1 | . 1 . Assault . | . . . Garrison . | . . . Intercept . | . . . Searches Triggered . | . . . Construction Impeded . | . . . Haulers Reinforced . | . . . Active Scanning Responses . | . . . Cargo Convoy Interrupts . | . . . Stealth | -11 -10 -10 --------- Run | Yrd Mat Min Distress Signals 2 | . 2 . Communications Jammed . | . . . Distress Signals . | . . . Times Spotted 26 | . 21 5 Peak Tracking Total 5 | . 5 2 Tactical Retreats 3 | . 1 2 Traps | -11 -10 -10 ------- Run | Yrd Mat Min Traps Triggered 1 | . 1 . Indirectly . | . . . Trap Hack Attempts . | . . . Triggered . | . . . Disarmed . | . . . Reprogrammed . | . . . Reused . | . . . Traps Extracted . | . . . Installed . | . . . Triggered . | . . . Machines | -11 -10 -10 ---------- Run | Yrd Mat Min Machines Disabled 1 | . 1 . Max in Single Turn 1 | . 1 . Machines Repaired . | . . . Machines Dismantled . | . . . Machines Sabotaged . | . . . Overloaded Fab Kills . | . . . Hacking | -11 -10 -10 --------- Run | Yrd Mat Min Machines Accessed 6 | . 6 . Terminals 5 | . 5 . Fabricators . | . . . Repair Stations 1 | . 1 . Recycling Units . | . . . Scanalyzers . | . . . Garrison Access . | . . . Total Hacks 19 | . 19 . Successful 12 | . 12 . Failed 7 | . 7 . Catastrophic 1 | . 1 . Database Lockouts . | . . . Manual 8 | . 8 . Terminals 18 | . 18 . Fabricators . | . . . Repair Stations 1 | . 1 . Recycling Units . | . . . Scanalyzers . | . . . Garrison Access . | . . . Terminal Hacks 8 | . 8 . Robot Analysis 1 | . 1 . Branch Access Points 1 | . 1 . Emergency Access Points 2 | . 2 . Unreport Threat 1 | . 1 . Locate Traps 1 | . 1 . Hauler Manifests 1 | . 1 . Zone Layout 1 | . 1 . Fabricator Hacks . | . . . Repair Station Hacks . | . . . Recycling Unit Hacks . | . . . Scanalyzer . | . . . Garrison Access Hacks . | . . . Unauthorized Hacks 4 | . 4 . Terminals 3 | . 3 . Track 2 | . 2 . Botnet 1 | . 1 . Fabricators . | . . . Repair Stations 1 | . 1 . Mechanics 1 | . 1 . Recycling Units . | . . . Scanalyzers . | . . . Garrison Access . | . . . Data Cores Recovered . | . . . Used . | . . . Hacking Detections 5 | . 5 . Full Trace Events 1 | . 1 . Feedback Events . | . . . Feedback Blocked . | . . . Robot Schematics Acquired . | . . . Robots Built . | . . . Authchips . | . . . Time . | . . . Total Robot Build Rating . | . . . Part Schematics Acquired . | . . . Parts Built . | . . . Authchips . | . . . Time . | . . . Total Part Build Rating . | . . . Parts Repaired . | . . . Time . | . . . Parts Recycled . | . . . Recycled Matter . | . . . Retrieved Matter . | . . . Retrieved Components . | . . . Parts Scanalyzed . | . . . Part Schematics Acquired . | . . . Parts Damaged . | . . . Bothacking | -11 -10 -10 ------------ Run | Yrd Mat Min Used RIF Installer . | . . . Robots Hacked . | . . . Non-combat . | . . . Combat . | . . . Robot Hacks Applied . | . . . Relay Couplers Released . | . . . Fabnet Peak Effective % . | . . . Robots Rewired . | . . . Allies Hacked . | . . . Hacks Repelled . | . . . Allies | -11 -10 -10 -------- Run | Yrd Mat Min Total Allies . | . . . Largest Group . | . . . Highest-Rated Group . | . . . Highest-Rated Ally . | . . . Total Orders . | . . . Ally Attacks . | . . . Total Damage . | . . . Kills . | . . . Allies Corrupted . | . . . Allies Melted . | . . . Intel | -11 -10 -10 ------- Run | Yrd Mat Min Robot Analysis Total 1 | . 1 . Derelict Logs Recovered . | . . . Drone Launches . | . . . Drone Recoveries . | . . . Exploration | -11 -10 -10 ------------- Run | Yrd Mat Min Turns Passed 1020 | 97 783 140 Spaces Moved 875 | 58 706 111 Core 1 | 1 . . Treads 19 | . . 19 Legs . | . . . Wheels 855 | 57 706 92 Hover . | . . . Flight . | . . . Fastest Speed 50 | 50 90 90 Average Speed 91 | 88 90 102 Slowest Speed 160 | 90 90 160 Overloaded Moves . | . . . Propulsion Burnouts . | . . . Robots Hopped . | . . . Cave-ins Triggered 1 | . . 1 Exploration Rate (%) 40 | 4 94 24 Regions Visited 2 Branch Regions 1 Pre-discovered Areas . | . . . Known Exits Taken 1 | . 1 . Unknown Exits Taken 1 | 1 . . Scrap Searched . | . . . Spaces Dug . | . . . Terrain Destroyed 4 | . 4 . Melee . | . . . Projectile . | . . . AOE 4 | . 4 . Terrain Rammed . | . . . Walls Destroyed . | . . . Machines Disabled . | . . . Actions | -11 -10 -10 --------- Run | Yrd Mat Min Total 990 | 83 783 124 Wait 12 | . 12 . Move 873 | 57 705 111 Hop . | . . . Pick Up 21 | 10 10 1 Fast Attach 5 | 5 . . Attach 6 | 1 4 1 Detach . | . . . Swap 6 | . 5 1 Drop 10 | 1 8 1 Fire 57 | 9 39 9 Melee . | . . . Ram . | . . . Kick . | . . . Crush . | . . . Escape Stasis . | . . . Rewire . | . . . Trap . | . . . Miscellaneous . | . . . Route ------- -11/Scrapyard -10/Materials (discovered 4 exits: [*Mat x3] / *Min) -10/Mines History --------- Turn | Location | Event 15 | -11/Scrapyard | Discovered new exit (range 16) 98 | -11/Scrapyard | Entered Materials 297 | -10/Materials | Discovered new exit (range 3) 316 | -10/Materials | Build established: Mutant 414 | -10/Materials | Discovered new exit (range 15) 477 | -10/Materials | Discovered new exit (range 15) 531 | -10/Materials | Identified exit to Mines 531 | -10/Materials | Discovered new exit (range 18) 881 | -10/Materials | Entered Mines 970 | -10/Mines | Crushed by falling debris 1016 | -10/Mines | Core integrity fell below 50% 1020 | -10/Mines | Core integrity fell below 20% 1021 | -10/Mines | Destroyed by YI-UF0 with YI-UF0's Doublenader Last Messages --------------- LOCATION=MINES GOAL=ESCAPE Something is scanning the area. 00925_ Dropped Mining Laser. 00925_ Acquired Targeting Computer. 00949_ The unstable cave ceiling collapses. 00951_ G-34 Mercenary destroyed. 00954_ Acquired 46 matter. 00968_ Lgt. Ion Engine destroyed. 00969_ The unstable cave ceiling collapses. 00970_ Crushed by falling debris. 00970_ Com. Wheel destroyed. 00970_ System corrupted by crushing effect (+4). 00973_ EW2N3 =0NUVR1N5CBFI3XBO%MZXR8KF&O=RMP 00973_ The unstable cave ceiling collapses. 01009_ Lgt. Assault Rifle destroyed. 01009_ Lgt. Armor Plating destroyed. 01011_ Lgt. Assault Rifle destroyed. 01014_ System corrupted: Lgt. Treads rejected. 01016_ The unstable cave ceiling collapses. Map ----- +----------------------------------------------------+ | | | | | | | | | | | | | | | | | | | | | ???????????????????????????????????????? | | ????????????????##???#########?????????? | | ???????????????## #### ##????????? | | ???????????????# ## ####?????? | | ???????????????# ##????? | | ???????????????## #????? | | ????????????????## ## #????? | | ?????????????????## ### ##????? | | ??????????????????###### ###?????? | | ?????????????????????## ## #???????? | | ????????????????????## ##? #???????? | | ???????????????###??# ## #???????? | | ??????????????## ### #?? ???? | | ??????????????# [! ## # # """???? | | ??????????????# [ [## """???? | | ??????????????# |[ @ #?#?"""???? | | ??????????????## #????? ??? | | ???????????????## # #?????????? | | ????????????????### ## ##????????? | | ????????# ######=# #????????? | | ?????# = ## = ##????????? | | ?????# ######! #?????????? | | ??????? ?????###### #????????? | | ?????? % #### # ##????????? | | ?????? # #?????????? | | ????? % # # # ###?????????? | | ????? % |* ##?????????? | | ????? g #?????????? | | ????? #?????????? | | ????? # #?????????? | | ?????? ### # #?????????? | | ??????????# # ## ##?????????? | | ??????????# ## ??##??????????? | | ??????????# #?### = ??????????????? | | ??????????# #????# % ##??????????????? | | ?????????# #??????# ????????????????? | | ???????? ???????# #????????????????? | | ????????? ????????# #????????????????? | | ?????????##?????????# #????????????????? | | ????????????????????? ????????????????? | +----------------------------------------------------+ Best States ------------- Heat Dissipation 25 Energy Generation 10 Energy Capacity 250 Matter Stores 300 Matter Capacity 300 Sight Range 16 Terrain Scan Range 16 Terrain Scan Density 10 Armor Coverage 150 Evasion (%) 42 Recoil Reduction 2 Item Schematics ----------------- None Robot Schematics ------------------ None Fabricated ------------ Nothing Alien Tech Used ----------------- None Achievements -------------- None Challenges ------------ None Game ------ Seed AngularGuidanceShovel Manual? 0 Play Time 00:14:46 Cumulative 347.4 hours Start 2024.12.24 @ 21:03:15 End 2024.12.24 @ 21:19:11 Sessions 1 Manual Loads 0 Difficulty Rogue Special Mode None Game No. 140 Rogue 140 Adventurer 0 Explorer 0 Win Type - Total 12 Types 10/0/1/1/0/0/0/0/0 Lore% 48 Gallery% 75 Achievement% 67 Wizard Run 0 Options --------- Layout 0 ASCII 0 Keyboard 0 Movement Numpad Keybinds 0 Fullscreen 1 Font 24/Smallcaps Map View 76x50 Zoom Use 0% Tactical HUD 1 Map Filters NONE Filters NONE Steam 1 RUN: e84d3e64-ac58-47b7-a757-f1adc7f36552